bitfinex-derivatives/quotes_ETHF0:USTF0_20251024
["timestamp","ask_amount","ask_price","bid_price","bid_amount"]
[1761272170299,0.3233,3879.2,3879.1,0.73154684]
[1761272171396,0.1382,3879.5,3879.1,0.73154684]
[1761272171397,0.3233,3879.4,3879.3,0.4628]
[1761272171704,0.3233,3879.4,3879.3,1.33443931]
[1761272172301,0.3233,3879.4,3879.3,10.39943931]
[1761272173001,0.5392,3879.4,3879.3,10.39943931]
[1761272173302,0.7721,3879.4,3879.3,10.13403931]
[1761272173802,0.7721,3879.4,3879.3,0.84253931]
[1761272174000,1.3440097,3879.4,3879.3,0.84253931]
[1761272174199,1.3440097,3879.4,3879.3,1.06903931]
[1761272174803,0.7721,3879.4,3879.3,1.06903931]
[1761272175303,0.7721,3879.4,3879.3,1.33443931]
[1761272176596,0.7721,3879.4,3879.3,1.06903931]
[1761272177205,0.7721,3879.4,3879.3,0.60623931]
[1761272178098,0.7721,3879.4,3879.3,0.84253931]
[1761272178710,0.7721,3879.4,3879.3,1.22668202]
[1761272179804,0.7721,3879.4,3879.3,1.49208202]
[1761272181310,0.7721,3879.4,3879.3,1.22668202]
[1761272181511,0.3233,3879.4,3879.3,1.49208202]
[1761272181809,0.3233,3880.1,3880.0,0.7282]
[1761272182004,0.5392,3880.1,3880.0,1.49208202]
[1761272182204,0.89570113,3880.1,3880.0,1.49208202]
[1761272182508,0.57240113,3880.1,3880.0,1.49208202]
[1761272182699,0.3233,3880.4,3880.3,1.19196]
[1761272182903,0.3233,3880.4,3880.3,1.95584202]
[1761272183102,0.89556838,3880.4,3880.3,1.95584202]
[1761272184211,0.57226838,3880.4,3880.3,1.95584202]
[1761272184515,0.32556864,3880.7,3880.6,1.19192]
[1761272184706,0.32556864,3880.7,3880.6,1.95580202]
[1761272184906,0.54146864,3880.7,3880.6,1.95580202]
[1761272186413,0.32556864,3880.7,3880.6,1.95580202]
[1761272187010,0.00226864,3880.7,3880.6,2.16337444]
[1761272189118,0.3491,3881.3,3881.2,0.46365]
[1761272189315,0.3491,3881.3,3881.2,1.94883202]
[1761272190212,0.35219752,3881.3,3881.2,1.94883202]
[1761272190620,0.57149752,3881.3,3881.2,1.94883202]
[1761272194719,0.35219752,3881.3,3881.2,1.94883202]
[1761272195720,0.00309752,3881.3,3881.2,1.94883202]
[1761272196823,0.00309752,3881.3,3881.2,10.79683202]
[1761272197126,0.5684,3882.4,3882.3,0.4562]
[1761272197318,0.7829,3882.4,3882.3,0.4562]
[1761272198125,0.78571291,3882.4,3882.3,0.45894529]
[1761272198624,0.78571291,3882.4,3882.3,0.72404529]
[1761272199028,0.78571291,3882.4,3882.3,0.45894529]
[1761272199923,0.78571291,3882.4,3882.3,0.22664529]
[1761272205132,0.78571291,3882.4,3882.3,0.45894529]
[1761272205728,0.00281291,3882.4,3882.3,0.72404529]
[1761272205931,0.3491,3882.7,3882.6,1.18478]
[1761272206134,0.3711,3882.8,3882.7,1.48518202]
[1761272207022,0.37357773,3882.8,3882.7,1.48518202]
[1761272208024,0.59287773,3882.8,3882.7,1.48518202]
[1761272212936,0.3562,3882.5,3882.3,0.00274529]
[1761272213129,0.7829,3882.4,3882.3,0.22664529]
[1761272213431,0.5684,3882.4,3882.3,0.72404529]
[1761272213636,0.3491,3882.4,3882.3,0.72404529]
[1761272213831,0.5684,3882.7,3882.4,0.2651]
[1761272214029,0.5684,3882.7,3882.6,1.48518202]
[1761272214432,0.7829,3882.7,3882.6,1.22008202]
[1761272215738,0.7829,3882.7,3882.6,1.68356202]
[1761272216143,0.7829,3882.7,3882.6,0.2239]
[1761272216343,0.7829,3882.4,3882.3,1.22282731]
[1761272216937,0.7829,3882.4,3882.3,1.48792731]
[1761272217140,0.3491,3882.4,3882.3,1.48792731]
[1761272218438,0.3491,3882.7,3882.6,0.7213]
[1761272218741,0.5684,3882.7,3882.6,1.48518202]
[1761272221845,0.7888,3882.7,3882.6,1.22008202]
[1761272222142,0.7888,3882.7,3882.6,1.48538202]
[1761272222340,0.5684,3882.7,3882.6,1.48538202]
[1761272223345,0.3491,3882.7,3882.6,1.48538202]
[1761272224340,0.5667,3882.7,3882.6,1.48538202]
[1761272225848,0.3491,3882.7,3882.6,1.48538202]
[1761272228950,0.5667,3882.7,3882.6,1.48538202]
[1761272229141,0.3491,3882.7,3882.6,1.48538202]
[1761272230245,0.02447773,3882.8,3882.7,0.46347]
[1761272230445,0.02447773,3882.8,3882.7,0.72877]
[1761272230647,0.02447773,3882.8,3882.7,1.17127]
[1761272231347,0.37497773,3882.8,3882.7,1.17127]
[1761272232952,0.59257773,3882.8,3882.7,1.17127]
[1761272234351,0.37497773,3882.8,3882.7,1.17127]
[1761272235351,0.3505,3882.7,3882.5,1.37918488]
[1761272235652,0.7885,3882.4,3882.3,4.29324529]
[1761272235954,0.7885,3882.4,3882.3,0.44524529]
[1761272236648,1.35945583,3882.4,3882.3,0.00274529]
[1761272237951,1.35945583,3882.4,3882.3,0.23134529]
[1761272238153,1.35945583,3882.4,3882.3,0.00274529]
[1761272238356,1.35945583,3882.4,3882.3,0.23134529]
[1761272239151,1.35945583,3882.4,3882.3,0.99522731]
[1761272239355,0.7885,3882.4,3882.3,1.47442731]
[1761272239551,0.5681,3882.4,3882.3,1.47442731]
[1761272240054,0.3505,3882.4,3882.3,1.47442731]
[1761272240358,0.3505,3882.4,3882.3,1.93794731]
[1761272240753,0.3505,3882.4,3882.3,1.77933814]
[1761272242257,0.3505,3882.7,3882.6,0.7078]
[1761272242463,0.3505,3882.7,3882.6,1.31307285]
[1761272242660,0.02447773,3882.8,3882.7,1.17127]
[1761272242865,0.37497773,3882.8,3882.7,1.17127]
[1761272243158,0.59257773,3882.8,3882.7,1.17127]
[1761272244762,0.3505,3883.6,3882.7,6.04777285]
[1761272244960,0.3505,3883.6,3883.5,1.31307285]
[1761272245156,0.1369,3884.0,3883.8,0.2139]
[1761272245157,0.3505,3883.9,3883.8,0.2139]
[1761272245466,0.3505,3883.9,3883.8,1.31307285]
[1761272245864,0.35316289,3883.9,3883.8,1.31307285]
[1761272246465,0.57076289,3883.9,3883.8,1.04777285]
[1761272246871,0.57076289,3883.9,3883.8,1.31307285]
[1761272247966,0.35316289,3883.9,3883.8,1.31307285]
[1761272248865,0.57546289,3883.9,3883.8,1.31307285]
[1761272252561,0.80386289,3883.9,3883.8,1.04777285]
[1761272252765,0.4598,3883.6,3883.4,3.848]
[1761272252971,0.9176,3883.5,3883.4,3.848]
[1761272253170,0.9176,3883.5,3883.4,4.3035]
[1761272253368,0.9176,3883.5,3883.4,4.5686]
[1761272254069,0.323,3883.5,3883.4,4.5686]
[1761272254372,0.323,3883.8,3883.7,0.7206]
[1761272254564,0.323,3883.8,3883.7,1.32587285]
[1761272255875,0.323,3883.8,3883.7,1.78922285]
[1761272256872,0.323,3883.8,3883.7,1.32587285]
[1761272258276,0.5544,3883.8,3883.7,1.32587285]
[1761272258473,0.323,3883.7,3883.3,0.4968]
[1761272258776,0.7828,3883.4,3883.3,0.66538807]
[1761272258982,0.7828,3883.4,3883.3,0.93048807]
[1761272259173,0.7828,3883.4,3883.3,0.7206]
[1761272260075,0.7828,3883.4,3883.3,0.92173589]
[1761272260371,0.7828,3883.4,3883.3,0.7206]
[1761272261380,0.7828,3883.4,3883.3,0.92319459]
[1761272264178,0.7828,3883.4,3883.3,0.65809459]
[1761272264380,0.323,3882.8,3882.6,1.37918488]
[1761272264581,0.7828,3882.4,3882.3,0.00274529]
[1761272264878,1.35176862,3882.4,3882.3,0.00274529]
[1761272265183,0.7828,3882.4,3882.3,0.00274529]
[1761272269582,0.7828,3882.4,3882.3,0.60801814]
[1761272269784,0.7828,3882.4,3882.3,0.83971814]
[1761272269984,0.7828,3882.4,3882.3,1.32861814]
[1761272270387,0.7828,3882.4,3882.3,1.06351814]
[1761272272591,0.7828,3882.4,3882.3,1.32861814]
[1761272272993,0.7828,3882.4,3882.3,1.06351814]
[1761272273488,0.323,3882.4,3882.3,1.79213814]
[1761272273692,0.1348,3883.5,3882.9,0.4555]
[1761272273895,0.4598,3883.3,3883.2,1.06077285]
[1761272275292,0.4598,3883.3,3883.2,0.60527285]
[1761272275595,0.9176,3883.0,3882.9,0.60527285]
[1761272275793,0.9176,3883.0,3882.9,0.83697285]
[1761272275989,0.9176,3883.0,3882.9,1.06077285]
[1761272276191,0.9176,3883.0,3882.9,1.38917285]
[1761272277195,0.5544,3883.0,3882.9,1.38917285]
[1761272278597,0.323,3883.0,3882.9,1.38917285]
[1761272278989,0.5544,3883.0,3882.9,1.38917285]
[1761272279684,0.5544,3883.0,3882.9,0.7839]
[1761272279991,0.794,3882.4,3882.3,0.46544529]
[1761272280198,0.794,3882.4,3882.3,0.79784529]
[1761272280599,0.794,3882.4,3882.3,0.00274529]
[1761272281795,0.794,3882.9,3882.8,0.2267]
[1761272282093,0.794,3882.4,3882.3,0.60801814]
[1761272282393,0.794,3882.4,3882.3,0.00274529]
[1761272283096,0.794,3882.4,3882.3,1.40311814]
[1761272286100,0.794,3882.4,3882.3,0.00274529]
[1761272286301,0.794,3882.4,3882.3,0.83471814]
[1761272288207,0.794,3882.4,3882.3,0.00274529]
[1761272289108,0.794,3882.4,3882.3,0.83471814]
[1761272289305,0.794,3882.4,3882.3,1.07071814]
[1761272290899,0.794,3882.4,3882.3,0.60801814]
[1761272293508,0.794,3882.4,3882.3,0.00274529]
[1761272297208,0.4919,3881.5,3881.3,0.46365]
[1761272297512,0.794,3881.4,3881.3,0.69035]
[1761272298203,0.794,3881.4,3881.3,0.69319865]
[1761272300118,0.794,3881.4,3881.3,0.92919865]
[1761272301110,0.794,3881.4,3881.3,0.46554865]
[1761272301312,0.5718,3881.9,3881.4,0.3324]
[1761272301613,0.4416,3881.9,3881.8,0.2267]
[1761272302009,0.794,3881.9,3881.8,0.2267]
[1761272305919,0.794,3881.9,3881.7,0.4636]
[1761272306119,0.3524,3881.8,3881.7,0.4636]
[1761272306311,0.794,3881.8,3881.7,0.4636]
[1761272307422,0.794,3881.8,3881.7,0.9123]
[1761272308519,0.794,3881.8,3881.7,1.2344]
[1761272309020,0.794,3881.8,3881.7,0.9123]
[1761272309508,0.4589,3881.6,3881.5,0.46362]
[1761272309711,0.806,3881.6,3881.5,0.46362]
[1761272309913,0.806,3881.4,3881.3,0.00284865]
[1761272319135,1.37611412,3881.4,3881.3,0.00284865]
[1761272322331,1.62391564,3881.4,3881.3,0.00284865]
[1761272322637,0.806,3880.9,3880.8,0.46371]
[1761272322840,0.806,3880.6,3880.5,4.31175]
[1761272323137,0.806,3880.6,3880.5,0.46375]
[1761272323732,0.80831984,3880.6,3880.5,0.46702906]
[1761272325149,0.80831984,3880.6,3880.5,0.69602906]
[1761272326550,0.80831984,3880.6,3880.5,1.28032906]
[1761272327243,0.80831984,3880.6,3880.5,0.92942906]
[1761272329645,0.80831984,3880.6,3880.5,0.00327906]
[1761272330441,1.62748048,3880.6,3880.5,0.00327906]
[1761272330643,0.806,3879.9,3879.7,3.848]
[1761272330850,0.1332,3880.0,3879.6,1.22699205]
[1761272330851,0.4589,3879.7,3879.6,1.22699205]
[1761272331147,0.806,3879.7,3879.6,0.76314205]
[1761272331454,0.9392,3879.5,3879.4,0.69288]
[1761272331647,0.9392,3879.5,3879.4,0.69577065]
[1761272332250,0.9392,3879.5,3879.4,0.46677065]
[1761272333253,0.806,3878.6,3878.5,1.37918488]
[1761272333458,0.2275,3877.9,3877.8,0.48818782]
[1761272333650,0.806,3877.9,3877.8,0.48818782]
[1761272333850,0.806,3877.9,3877.8,0.25478782]
[1761272334253,0.806,3877.9,3877.8,0.25756544]
[1761272334451,0.806,3877.9,3877.8,0.02856544]
[1761272334656,0.806,3877.9,3877.8,0.25756544]
[1761272335357,0.806,3877.9,3877.8,0.02856544]
[1761272336557,0.5746,3877.1,3877.0,1.27746]
[1761272337565,0.806,3877.1,3877.0,1.12747727]
[1761272337758,0.80838089,3877.1,3877.0,1.1298763]
[1761272339557,0.80838089,3877.1,3877.0,1.4772763]
[1761272340655,0.00238089,3877.1,3877.0,1.5223763]
[1761272343367,0.00238089,3877.1,3877.0,6.5223763]
[1761272348670,0.00238089,3877.1,3877.0,10.3703763]
[1761272348872,0.00238089,3877.1,3877.0,6.5223763]
[1761272349263,0.569,3877.9,3877.8,1.27407]
[1761272349459,0.1332,3878.5,3877.8,1.57314205]
[1761272349665,0.7993,3878.4,3878.3,1.68975205]
[1761272350265,0.34977676,3878.4,3878.3,2.03715205]
[1761272350468,0.57187676,3878.4,3878.3,2.03715205]
[1761272351074,0.80217676,3878.4,3878.3,2.03715205]
[1761272351270,0.80217676,3878.4,3878.3,1.68975205]
[1761272351867,0.80217676,3878.4,3878.3,2.03715205]
[1761272352070,0.80217676,3878.4,3878.3,1.68975205]
[1761272354070,0.80217676,3878.4,3878.3,2.03715205]
[1761272356168,0.80217676,3878.4,3878.3,0.69561]
[1761272356373,0.80217676,3878.4,3878.3,0.46401]
[1761272358168,0.80217676,3878.4,3878.3,0.69561]
[1761272362376,1.3807039,3878.4,3878.3,0.69561]
[1761272363573,0.7993,3878.2,3878.1,1.30226496]
[1761272363882,0.9362,3878.0,3877.9,4.0796]
[1761272364380,0.9362,3878.0,3877.9,3.848]
[1761272364967,0.569,3877.4,3877.3,1.84178488]
[1761272365172,0.569,3877.4,3877.3,0.81]
[1761272365574,0.7993,3877.4,3877.3,0.81]
[1761272365971,0.4524,3877.4,3877.2,0.60663496]
[1761272366181,0.7993,3877.1,3877.0,0.23399903]
[1761272366377,0.7993,3877.1,3877.0,0.84063399]
[1761272367375,0.7993,3877.1,3877.0,0.00239903]
[1761272367576,1.37842702,3877.1,3877.0,0.00239903]
[1761272367772,2.23441963,3877.1,3877.0,0.00239903]
[1761272367976,2.23441963,3877.1,3876.1,1.37918488]
[1761272367977,0.7971,3876.2,3876.1,1.60369143]
[1761272368983,0.7971,3876.2,3876.1,1.39523048]
[1761272369281,0.7971,3876.2,3876.1,1.05433048]
[1761272369483,0.7971,3876.2,3876.1,1.40913048]
[1761272370180,0.1393,3876.5,3876.4,1.26774]
[1761272370181,0.2228,3876.5,3876.4,1.26774]
[1761272370477,0.2228,3876.7,3876.6,1.26771]
[1761272370682,0.7818,3876.7,3876.6,1.87434496]
[1761272370879,0.3423,3876.7,3876.6,1.87434496]
[1761272371176,0.1369,3877.5,3877.0,0.81896]
[1761272371483,0.4395,3877.2,3877.1,0.4487]
[1761272371683,0.7818,3877.2,3877.1,0.4487]
[1761272373070,0.7818,3877.2,3877.1,0.2178]
[1761272373877,0.7818,3877.2,3877.0,0.46416]
[1761272374075,0.7818,3877.1,3877.0,0.46416]
[1761272374482,0.7818,3877.1,3877.0,0.68196]
[1761272376083,0.7818,3877.1,3877.0,0.46416]
[1761272377084,0.917,3876.5,3876.4,4.0658]
[1761272377285,0.917,3876.5,3876.4,0.8035]
[1761272377581,0.917,3876.5,3876.4,1.26774]
[1761272377783,0.917,3876.5,3876.4,0.91294]
[1761272378278,0.3423,3876.4,3876.3,3.848]
[1761272378485,0.7818,3876.4,3876.3,3.848]
[1761272378678,0.7818,3876.4,3876.3,4.0658]
[1761272379081,0.7818,3876.4,3876.3,4.76095]
[1761272380477,0.7818,3876.4,3876.3,5.11575]
[1761272380680,0.7818,3876.4,3876.3,4.31225]
[1761272380984,0.7818,3876.4,3876.3,4.91888496]
[1761272381189,0.7818,3876.4,3876.3,0.60663496]
[1761272381388,0.7818,3876.4,3876.3,0.82443496]
[1761272382289,0.3423,3876.3,3876.2,0.46426]
[1761272382490,0.7818,3876.3,3876.2,0.46426]
[1761272382792,0.7818,3876.3,3876.2,0.68206]
[1761272385087,0.7818,3876.3,3876.2,0.91296]
[1761272385988,0.5651,3876.3,3876.2,1.26776]
[1761272386191,0.3423,3876.3,3876.2,1.26776]
[1761272386395,0.1352,3876.5,3876.1,0.60913048]
[1761272386396,0.7003,3876.5,3876.4,1.26774]
[1761272386690,0.7003,3876.5,3876.4,1.87437496]
[1761272386895,0.917,3876.5,3876.4,1.87437496]
[1761272387191,0.917,3876.5,3876.4,1.51957496]
[1761272387985,0.917,3876.5,3876.4,1.28867496]
[1761272388385,0.917,3876.5,3876.4,1.51957496]
[1761272388591,0.917,3876.5,3876.4,1.28867496]
[1761272388792,0.3423,3876.3,3876.2,0.60663496]
[1761272388993,0.7818,3876.3,3876.2,0.60663496]
[1761272389388,0.7818,3876.3,3876.2,0.82443496]
[1761272389688,0.7818,3876.3,3876.2,1.05533496]
[1761272389998,0.5651,3876.3,3876.2,1.87439496]
[1761272392896,0.7818,3876.3,3876.2,1.87439496]
[1761272393597,0.7818,3876.3,3876.2,1.51959496]
[1761272394496,0.7818,3876.3,3876.2,1.87439496]
[1761272397703,0.5651,3876.3,3876.2,1.87439496]
[1761272398305,0.3423,3876.3,3876.2,1.87439496]
[1761272398992,0.7818,3876.3,3876.2,1.28989496]
[1761272399598,0.7818,3876.3,3876.2,1.83399496]
[1761272399797,0.5651,3876.3,3876.2,1.83399496]
[1761272401105,0.5651,3876.3,3876.2,3.21317984]
[1761272401986,0.8008,3876.3,3876.2,3.21317984]
[1761272403802,0.5651,3876.3,3876.2,3.21317984]
[1761272404005,0.3682,3877.0,3876.5,0.3231]
[1761272404204,1.29810772,3876.9,3876.8,0.44]
[1761272404400,1.29810772,3876.9,3876.8,1.2273]
[1761272404603,0.3273,3876.9,3876.8,1.2273]
[1761272404796,0.5603,3876.9,3876.8,1.2273]
[1761272404996,0.796,3876.9,3876.8,0.9042]
[1761272405197,1.37488491,3876.9,3876.8,0.9042]
[1761272405397,0.796,3876.9,3876.8,0.9042]
[1761272406206,1.37489297,3876.9,3876.8,0.9042]
[1761272406400,0.796,3876.9,3876.8,0.9042]
[1761272406701,0.796,3876.9,3876.8,1.2273]
[1761272407004,1.37480575,3876.9,3876.8,0.4642]
[1761272408395,1.37480575,3876.9,3876.8,0.6832]
[1761272408998,1.37480575,3876.9,3876.8,0.9042]
[1761272409194,1.37480575,3876.9,3876.8,1.2273]
[1761272409800,0.796,3876.9,3876.8,0.4642]
[1761272410307,1.37464182,3876.9,3876.8,0.4642]
[1761272411212,1.37464182,3876.9,3876.8,0.6832]
[1761272411410,1.37464182,3876.9,3876.8,0.9042]
[1761272411707,0.796,3876.9,3876.8,1.2273]
[1761272411896,0.796,3876.9,3876.8,0.9042]
[1761272413509,0.796,3876.9,3876.8,1.2273]
[1761272414009,0.1369,3877.5,3876.7,0.60663496]
[1761272414010,0.796,3877.4,3877.3,0.68312]
[1761272414212,1.6250365,3877.4,3877.3,0.90412]
[1761272414505,1.37454384,3877.4,3877.3,0.90412]
[1761272414916,1.37454384,3877.4,3877.3,0.68312]
[1761272415709,1.37454384,3877.4,3877.3,0.46412]
[1761272416513,1.37454384,3877.4,3877.3,0.68312]
[1761272417611,1.37454384,3877.4,3877.3,1.22722]
[1761272418308,0.796,3877.4,3877.3,1.22722]
[1761272418509,0.796,3877.4,3877.3,0.90412]
[1761272421010,0.796,3877.4,3877.3,1.22722]
[1761272423010,0.796,3877.4,3877.3,0.90412]
[1761272423912,0.796,3877.4,3877.3,1.22722]
[1761272425309,0.5603,3877.4,3877.3,1.99197484]
[1761272425509,0.3273,3877.4,3877.3,1.99197484]
[1761272425817,0.6056,3878.0,3877.9,0.46406]
[1761272426001,1.18309196,3878.0,3877.9,0.68306]
[1761272426208,1.51039196,3878.0,3877.9,1.22716]
[1761272426517,0.9329,3878.0,3877.9,1.22716]
[1761272427610,0.9329,3878.0,3877.9,1.43499961]
[1761272428509,0.9329,3878.0,3877.9,1.22716]
[1761272428717,0.9329,3878.0,3877.9,0.90406]
[1761272428911,0.9329,3878.0,3877.9,0.68306]
[1761272429415,0.351,3877.4,3877.1,5.22718488]
[1761272429615,0.351,3877.4,3876.7,0.3496]
[1761272429616,0.9323,3877.0,3876.9,0.2373]
[1761272429809,0.9323,3877.0,3876.9,1.28778]
[1761272430118,0.7899,3877.4,3877.3,0.2373]
[1761272430522,0.7899,3877.4,3877.0,0.46416]
[1761272430816,0.7899,3877.2,3877.1,0.70145]
[1761272431119,0.7899,3877.2,3877.1,1.28775]
[1761272434320,0.7899,3877.2,3877.1,0.93815]
[1761272434810,0.7899,3877.2,3877.1,0.2373]
[1761272435010,0.9323,3877.0,3876.9,0.70148]
[1761272441618,0.9323,3877.0,3876.9,0.46418]
[1761272441822,0.9323,3876.5,3876.4,1.85318488]
[1761272442016,0.9323,3876.5,3876.4,0.8236]
[1761272443315,0.9323,3876.5,3876.3,0.8236]
[1761272443316,0.7899,3876.4,3876.3,0.8236]
[1761272443523,0.7899,3876.4,3876.3,0.2373]
[1761272443820,0.7899,3876.2,3876.1,1.29036552]
[1761272444324,0.7899,3876.2,3876.1,0.94076552]
[1761272447322,0.7899,3876.2,3876.1,0.46676552]
[1761272448026,0.7899,3876.2,3876.1,0.70406552]
[1761272453127,0.7899,3876.2,3876.1,0.23979552]
[1761272454024,0.7899,3876.2,3876.1,0.00249552]
[1761272460131,0.1411,3875.5,3875.4,0.46436]
[1761272460329,0.7646,3875.2,3875.1,0.2341]
[1761272461222,0.76780247,3875.2,3875.1,0.23739996]
[1761272463534,0.32650247,3875.2,3875.1,0.82009996]
[1761272463839,0.54480247,3875.2,3875.1,0.82009996]
[1761272464141,0.32650247,3875.2,3875.1,0.82009996]
[1761272464637,0.54480247,3875.2,3875.1,0.82009996]
[1761272465338,0.32650247,3875.2,3875.1,0.82009996]
[1761272466530,0.54480247,3875.2,3875.1,0.82009996]
[1761272467838,0.32650247,3875.2,3875.1,0.82009996]
[1761272469137,2.47e-06,3875.2,3875.1,0.82009996]
[1761272470138,0.76460247,3875.2,3875.1,0.46929996]
[1761272470340,0.76460247,3875.2,3875.1,0.82009996]
[1761272470641,0.32330247,3875.2,3875.1,0.82009996]
[1761272471037,0.54160247,3875.2,3875.1,0.82009996]
[1761272475447,2.47e-06,3875.2,3875.1,0.46929996]
[1761272476845,0.32330247,3875.2,3875.1,0.46929996]
[1761272477041,0.32330247,3875.2,3875.1,0.82009996]
[1761272478934,0.3233,3875.5,3875.4,1.28116]
[1761272479141,0.3233,3875.5,3875.4,2.04591484]
[1761272479541,0.7646,3875.5,3875.4,2.04591484]
[1761272479748,0.9057,3875.5,3875.4,0.69846]
[1761272479946,0.90803075,3875.5,3875.4,0.69846]
[1761272480637,0.90803075,3875.5,3875.4,0.93036]
[1761272481839,0.90803075,3875.5,3875.4,1.28116]
[1761272482342,0.90803075,3875.5,3875.4,2.66448671]
[1761272482749,0.90803075,3875.5,3875.4,3.2718996]
[1761272483248,0.54393075,3875.5,3875.4,3.2718996]
[1761272484549,0.32563075,3875.5,3875.4,3.2718996]
[1761272484748,0.32563075,3875.5,3875.4,1.88857289]
[1761272486044,0.3233,3876.4,3876.0,0.3508]
[1761272486350,0.5416,3876.4,3876.3,1.42421289]
[1761272486550,1.34345075,3876.4,3876.3,0.8168]
[1761272486755,1.34345075,3876.4,3876.3,1.88846289]
[1761272486940,1.34660761,3876.4,3876.3,1.53766289]
[1761272487345,1.34652995,3876.4,3876.3,1.53766289]
[1761272487948,0.76775686,3876.4,3876.3,1.89336289]
[1761272495062,0.00315686,3876.4,3876.3,1.89336289]
[1761272495266,0.3345,3876.8,3876.7,1.2478]
[1761272495468,0.3345,3876.8,3876.7,1.85521289]
[1761272495766,0.5522,3876.8,3876.7,1.85521289]
[1761272496266,0.55553406,3876.8,3876.7,1.85521289]
[1761272497968,0.33783406,3876.8,3876.7,1.85521289]
[1761272499368,0.00333406,3876.8,3876.7,1.85521289]
[1761272499664,0.33783406,3876.8,3876.7,1.85521289]
[1761272499967,0.78243406,3876.8,3876.7,0.9161]
[1761272500166,0.78243406,3876.8,3876.7,0.6912]
[1761272502068,0.1296,3876.5,3876.3,4.45541289]
[1761272502274,0.7791,3876.4,3876.3,5.14666289]
[1761272502772,0.7791,3876.4,3876.3,5.70326289]
[1761272503272,0.7791,3876.4,3876.3,5.37156289]
[1761272503667,0.5522,3876.4,3876.3,5.70326289]
[1761272504875,0.3345,3876.4,3876.3,5.70326289]
[1761272505772,0.44793406,3876.8,3876.7,1.2478]
[1761272505966,0.44793406,3876.8,3876.7,1.85521289]
[1761272506166,0.44793406,3876.8,3876.7,0.6912]
[1761272506371,0.78243406,3876.8,3876.7,0.6912]
[1761272507680,0.78243406,3876.8,3876.7,0.4642]
[1761272513582,0.7791,3876.6,3876.5,0.46422]
[1761272516377,0.4641,3876.5,3876.2,1.38087372]
[1761272516676,0.5522,3876.3,3876.2,2.62873372]
[1761272516983,0.5522,3876.3,3876.2,3.23614661]
[1761272517184,0.5522,3876.3,3876.2,1.85527289]
[1761272518385,0.3345,3876.3,3876.2,1.85527289]
[1761272519588,0.5522,3876.3,3876.2,1.85527289]
[1761272520985,0.1372,3876.0,3875.8,1.8530104]
[1761272521180,0.447,3875.7,3875.5,1.60876189]
[1761272521488,0.447,3875.7,3875.5,0.2228]
[1761272521684,0.3265,3875.6,3875.5,0.2228]
[1761272521890,0.7735,3875.6,3875.5,0.2228]
[1761272524893,0.7735,3875.6,3875.4,0.46436]
[1761272525084,0.9107,3875.5,3875.4,0.46436]
[1761272525286,0.7735,3875.3,3875.2,0.68718]
[1761272526993,0.7735,3875.3,3875.2,0.46438]
[1761272527192,0.7735,3875.3,3875.2,0.68718]
[1761272527396,0.7735,3875.3,3875.2,1.26438]
[1761272527894,0.5581,3875.3,3875.2,1.26438]
[1761272528392,0.7735,3875.2,3875.1,0.00329996]
[1761272529593,1.38091289,3875.2,3875.1,0.00329996]
[1761272531693,6.38091289,3875.2,3875.1,0.00329996]
[1761272531993,0.7735,3874.9,3874.8,0.46443]
[1761272532391,0.2316,3874.7,3874.6,0.46446]
[1761272532697,0.7735,3874.7,3874.6,0.46446]
[1761272532898,0.7735,3874.7,3874.6,0.46757543]
[1761272535805,0.7735,3874.7,3874.6,0.00311543]
[1761272537092,0.7735,3874.7,3874.6,0.45331543]
[1761272537293,0.7735,3874.7,3874.6,0.80311543]
[1761272540196,0.7735,3874.7,3874.6,0.45331543]
[1761272540405,0.7735,3874.7,3874.6,0.22591543]
[1761272541006,0.7735,3874.7,3874.6,0.00311543]
[1761272541408,0.7735,3874.7,3874.6,0.22591543]
[1761272541608,0.7735,3874.7,3874.6,1.41052832]
[1761272542704,0.7735,3874.7,3874.6,0.45331543]
[1761272543810,0.7735,3874.7,3874.6,0.00311543]
[1761272546408,0.7735,3874.7,3874.6,0.80311543]
[1761272548115,0.7735,3874.7,3874.6,0.45331543]
[1761272549113,0.7735,3874.7,3874.6,0.79381543]
[1761272549913,0.5581,3874.7,3874.6,0.79381543]
[1761272551606,0.7929,3874.7,3874.6,0.22591543]
[1761272556412,0.7929,3874.7,3874.6,0.00311543]
[1761272558218,0.3263,3874.6,3874.0,1.38596189]
[1761272558423,5.83050771,3874.7,3873.6,1.85053189]
[1761272558424,0.796,3873.8,3873.6,1.85053189]
[1761272558619,0.796,3873.7,3873.6,1.38596189]
[1761272558814,0.9259,3873.5,3873.4,1.38596189]
[1761272559018,0.4697,3873.3,3873.2,1.38596189]
[1761272559323,0.79911312,3873.3,3873.2,0.79755197]
[1761272560115,0.56431312,3873.3,3873.2,1.5633727]
[1761272560618,0.79911312,3873.3,3873.2,1.43048214]
[1761272560822,0.79911312,3873.3,3873.2,1.77098214]
[1761272561412,0.79911312,3873.3,3873.2,1.43048214]
[1761272562421,0.79911312,3873.3,3872.8,0.02582111]
[1761272562422,6.56493385,3873.3,3872.8,0.02582111]
[1761272562728,6.56493385,3873.3,3872.8,0.25242111]
[1761272562729,0.796,3872.9,3872.8,0.25242111]
[1761272563114,0.796,3872.9,3872.8,0.02582111]
[1761272563515,0.796,3872.9,3872.8,0.02776156]
[1761272563720,0.796,3872.9,3872.8,0.82326156]
[1761272565131,0.5612,3872.9,3872.8,0.82326156]
[1761272565326,0.796,3872.9,3872.8,0.82326156]
[1761272565532,0.3263,3872.9,3872.8,0.82326156]
[1761272565831,0.5612,3872.9,3872.8,0.82326156]
[1761272566737,0.3263,3872.9,3872.8,0.82326156]
[1761272567037,0.5612,3873.1,3873.0,1.26015]
[1761272568431,0.796,3873.1,3873.0,1.26015]
[1761272568833,0.796,3873.1,3873.0,0.91965]
[1761272570938,0.796,3873.1,3873.0,1.26015]
[1761272571143,0.796,3873.1,3873.0,0.69125]
[1761272571338,0.796,3873.1,3873.0,0.46465]
[1761272571731,0.796,3873.1,3873.0,0.69125]
[1761272572536,0.796,3873.1,3873.0,0.91965]
[1761272572739,0.796,3873.1,3873.0,1.26015]